[Event "Live Chess"]
[Site "Chess.com"]
[Date "2023.05.20"]
[Round "-"]
[White "ChessTWSS"]
[Black "omisoc"]
[Result "0-1"]
[WhiteElo "1672"]
[BlackElo "2150"]
[TimeControl "300"]
[EndTime "10:05:28 PDT"]
[Termination "omisoc won by checkmate"]

1. d4 {[%clk 0:04:56]} 1... g6 {[%clk 0:04:55.3]} 2. Bf4 {[%clk 0:04:51.7]} 2...
Bg7 {[%clk 0:04:52.6]} 3. e3 {[%clk 0:04:47.7]} 3... d6 {[%clk 0:04:50.8]} 4.
Nf3 {[%clk 0:04:41.5]} 4... b6 {[%clk 0:04:49.7]} 5. c3 {[%clk 0:04:37.8]} 5...
Bb7 {[%clk 0:04:48.4]} 6. Bd3 {[%clk 0:04:32.1]} 6... Nf6 {[%clk 0:04:47.1]} 7.
Nbd2 {[%clk 0:04:27.7]} 7... O-O {[%clk 0:04:43.4]} 8. O-O {[%clk 0:04:20]} 8...
c5 {[%clk 0:04:41.7]} 9. a4 {[%clk 0:04:13.7]} 9... Qc8 {[%clk 0:04:38.1]} 10.
a5 {[%clk 0:04:04.8]} 10... Nbd7 {[%clk 0:04:33.1]} 11. axb6 {[%clk 0:03:57]}
11... axb6 {[%clk 0:04:30.9]} 12. Rxa8 {[%clk 0:03:55]} 12... Qxa8 {[%clk
0:04:28.2]} 13. Qa1 {[%clk 0:03:48]} 13... Bc6 {[%clk 0:04:16.6]} 14. Qxa8
{[%clk 0:03:39.1]} 14... Rxa8 {[%clk 0:04:16.5]} 15. Nb3 {[%clk 0:03:27.6]}
15... Bd5 {[%clk 0:04:04.7]} 16. Ra1 {[%clk 0:03:20.4]} 16... Rxa1+ {[%clk
0:04:01.8]} 17. Nxa1 {[%clk 0:03:15.1]} 17... Kf8 {[%clk 0:03:53.6]} 18. Bb5
{[%clk 0:02:56.3]} 18... Ke8 {[%clk 0:03:40.3]} 19. Bxd7+ {[%clk 0:02:48.3]}
19... Kxd7 {[%clk 0:03:38.1]} 20. Nd2 {[%clk 0:02:36.5]} 20... Ne4 {[%clk
0:03:26]} 21. Nxe4 {[%clk 0:02:32.5]} 21... Bxe4 {[%clk 0:03:25.9]} 22. dxc5
{[%clk 0:02:26.6]} 22... bxc5 {[%clk 0:03:22.3]} 23. f3 {[%clk 0:02:22.2]} 23...
Bb1 {[%clk 0:03:12.8]} 24. e4 {[%clk 0:02:11.7]} 24... f5 {[%clk 0:03:05]} 25.
exf5 {[%clk 0:02:06.4]} 25... gxf5 {[%clk 0:03:03.8]} 26. g4 {[%clk 0:01:56.9]}
26... e5 {[%clk 0:02:53.4]} 27. Bg3 {[%clk 0:01:49.8]} 27... Ke6 {[%clk
0:02:47.2]} 28. gxf5+ {[%clk 0:01:45]} 28... Kxf5 {[%clk 0:02:43.4]} 29. h4
{[%clk 0:01:35]} 29... c4 {[%clk 0:02:38.1]} 30. b3 {[%clk 0:01:26.7]} 30... e4
{[%clk 0:02:26.2]} 31. fxe4+ {[%clk 0:01:21.3]} 31... Kxe4 {[%clk 0:02:23.1]}
32. bxc4 {[%clk 0:01:15.2]} 32... Bxc3 {[%clk 0:02:18.8]} 33. Bxd6 {[%clk
0:01:10.8]} 33... Bxa1 {[%clk 0:02:16.2]} 34. c5 {[%clk 0:01:03.2]} 34... Be5
{[%clk 0:02:08.6]} 35. Bxe5 {[%clk 0:00:56.1]} 35... Kxe5 {[%clk 0:02:07]} 36.
c6 {[%clk 0:00:52.9]} 36... Kd6 {[%clk 0:02:05.3]} 37. c7 {[%clk 0:00:47.1]}
37... Kxc7 {[%clk 0:02:03.7]} 38. Kg2 {[%clk 0:00:44.6]} 38... Kd6 {[%clk
0:02:02.5]} 39. Kg3 {[%clk 0:00:43.8]} 39... Ke5 {[%clk 0:02:00.5]} 40. Kg4
{[%clk 0:00:40]} 40... Kf6 {[%clk 0:01:56.9]} 41. Kh5 {[%clk 0:00:32.9]} 41...
Kf5 {[%clk 0:01:56]} 42. Kh6 {[%clk 0:00:30.7]} 42... Kg4 {[%clk 0:01:55.2]} 43.
Kg7 {[%clk 0:00:27.6]} 43... Kxh4 {[%clk 0:01:53.6]} 44. Kh6 {[%clk 0:00:26.8]}
44... Kg4 {[%clk 0:01:52.7]} 45. Kg7 {[%clk 0:00:26.1]} 45... h5 {[%clk
0:01:51.7]} 46. Kh6 {[%clk 0:00:25]} 46... h4 {[%clk 0:01:50.1]} 47. Kg7 {[%clk
0:00:24.1]} 47... h3 {[%clk 0:01:49]} 48. Kf6 {[%clk 0:00:23.3]} 48... h2 {[%clk
0:01:47.8]} 49. Ke6 {[%clk 0:00:23.2]} 49... h1=Q {[%clk 0:01:46]} 50. Ke5
{[%clk 0:00:23.1]} 50... Qe1+ {[%clk 0:01:40.4]} 51. Kd5 {[%clk 0:00:23]} 51...
Kf5 {[%clk 0:01:38.6]} 52. Kd6 {[%clk 0:00:22.9]} 52... Qe5+ {[%clk 0:01:36.3]}
53. Kc6 {[%clk 0:00:22.8]} 53... Ke6 {[%clk 0:01:32.8]} 54. Kb6 {[%clk
0:00:21.5]} 54... Bh7 {[%clk 0:01:31.9]} 55. Ka6 {[%clk 0:00:21.4]} 55... Qc5
{[%clk 0:01:30]} 56. Kb7 {[%clk 0:00:20.5]} 56... Kd7 {[%clk 0:01:28.7]} 57. Ka6
{[%clk 0:00:20.4]} 57... Qb4 {[%clk 0:01:27.4]} 58. Ka7 {[%clk 0:00:19.5]} 58...
Kc7 {[%clk 0:01:26.4]} 59. Ka6 {[%clk 0:00:17.6]} 59... Qb6# {[%clk 0:01:24.1]}
0-1

[Event "Live Chess"]
[Site "Chess.com"]
[Date "2023.05.20"]
[Round "-"]
[White "Ra2orLeaf"]
[Black "LodeshChess"]
[Result "0-1"]
[WhiteElo "1135"]
[BlackElo "936"]
[TimeControl "300"]
[EndTime "10:05:33 PDT"]
[Termination "LodeshChess won by checkmate"]

1. c4 {[%clk 0:04:57.1]} 1... e5 {[%clk 0:04:56.8]} 2. Nc3 {[%clk 0:04:56.5]}
2... c6 {[%clk 0:04:56.5]} 3. g3 {[%clk 0:04:56.1]} 3... d5 {[%clk 0:04:56.2]}
4. cxd5 {[%clk 0:04:55.1]} 4... cxd5 {[%clk 0:04:55.2]} 5. d4 {[%clk 0:04:53]}
5... e4 {[%clk 0:04:52.6]} 6. Bg2 {[%clk 0:04:51.9]} 6... Nf6 {[%clk 0:04:51.1]}
7. e3 {[%clk 0:04:51.5]} 7... Bb4 {[%clk 0:04:50.3]} 8. Ne2 {[%clk 0:04:50.8]}
8... Nc6 {[%clk 0:04:48.2]} 9. O-O {[%clk 0:04:49.6]} 9... Be6 {[%clk
0:04:45.4]} 10. a3 {[%clk 0:04:49]} 10... Ba5 {[%clk 0:04:43.7]} 11. b4 {[%clk
0:04:48.2]} 11... Bc7 {[%clk 0:04:41.4]} 12. b5 {[%clk 0:04:45.5]} 12... Na5
{[%clk 0:04:29.9]} 13. Na4 {[%clk 0:04:38.9]} 13... b6 {[%clk 0:04:22]} 14. Bd2
{[%clk 0:04:37.6]} 14... Qd7 {[%clk 0:04:12.6]} 15. Bxa5 {[%clk 0:04:33.5]}
15... bxa5 {[%clk 0:04:11.5]} 16. Rb1 {[%clk 0:04:21.2]} 16... Bh3 {[%clk
0:04:08.7]} 17. Nc5 {[%clk 0:04:18.3]} 17... Qc8 {[%clk 0:03:59.7]} 18. Qa4
{[%clk 0:04:12]} 18... O-O {[%clk 0:03:57.9]} 19. Rfc1 {[%clk 0:04:00.8]} 19...
Bxg2 {[%clk 0:03:49]} 20. Kxg2 {[%clk 0:04:00.7]} 20... Qf5 {[%clk 0:03:39]} 21.
Na6 {[%clk 0:03:51.9]} 21... Bb6 {[%clk 0:03:29.2]} 22. Nf4 {[%clk 0:03:34.1]}
22... g5 {[%clk 0:03:21.4]} 23. Ne2 {[%clk 0:03:27.7]} 23... Ng4 {[%clk
0:03:19.6]} 24. Rf1 {[%clk 0:03:17.6]} 24... Rfc8 {[%clk 0:03:00.5]} 25. Nc5
{[%clk 0:03:10.2]} 25... Qf3+ {[%clk 0:02:49.1]} 26. Kg1 {[%clk 0:03:03.8]}
26... Qxe2 {[%clk 0:02:37.5]} 27. Nd7 {[%clk 0:03:01.4]} 27... Rc2 {[%clk
0:02:15.6]} 28. Nxb6 {[%clk 0:02:51.8]} 28... Nxf2 {[%clk 0:02:14.6]} 29. Nxa8
{[%clk 0:02:42.7]} 29... Nh3+ {[%clk 0:02:14.1]} 30. Kh1 {[%clk 0:02:39.1]}
30... Qxh2# {[%clk 0:02:13.7]} 0-1

[Event "Live Chess"]
[Site "Chess.com"]
[Date "2023.05.20"]
[Round "-"]
[White "Jeffaroow"]
[Black "IanCalvert2"]
[Result "0-1"]
[WhiteElo "450"]
[BlackElo "1643"]
[TimeControl "300"]
[EndTime "10:05:35 PDT"]
[Termination "IanCalvert2 won by resignation"]

1. e4 {[%clk 0:04:57.8]} 1... d5 {[%clk 0:04:58.6]} 2. Nf3 {[%clk 0:04:56.1]}
2... dxe4 {[%clk 0:04:56.2]} 3. Ng5 {[%clk 0:04:54.6]} 3... Bf5 {[%clk
0:04:54.8]} 4. d3 {[%clk 0:04:51]} 4... exd3 {[%clk 0:04:52.4]} 5. Bxd3 {[%clk
0:04:49.6]} 5... Bxd3 {[%clk 0:04:50.5]} 6. Qxd3 {[%clk 0:04:48.1]} 6... Qxd3
{[%clk 0:04:47.9]} 7. cxd3 {[%clk 0:04:46.6]} 7... Nf6 {[%clk 0:04:45.6]} 8. Nc3
{[%clk 0:04:44.9]} 8... h6 {[%clk 0:04:42.9]} 9. Nf3 {[%clk 0:04:43.2]} 9... Nc6
{[%clk 0:04:39.4]} 10. O-O {[%clk 0:04:40.4]} 10... O-O-O {[%clk 0:04:21.7]} 11.
d4 {[%clk 0:04:34.9]} 11... Nxd4 {[%clk 0:04:07.5]} 12. Be3 {[%clk 0:04:30.8]}
12... Nxf3+ {[%clk 0:03:55.3]} 13. gxf3 {[%clk 0:04:29.5]} 13... a6 {[%clk
0:03:53.8]} 14. Rad1 {[%clk 0:04:23.8]} 14... e6 {[%clk 0:03:43.5]} 15. Rxd8+
{[%clk 0:04:20.2]} 15... Kxd8 {[%clk 0:03:40.3]} 16. Rd1+ {[%clk 0:04:19]} 16...
Kc8 {[%clk 0:03:34.1]} 17. Ne4 {[%clk 0:04:17.4]} 17... Nxe4 {[%clk 0:03:30.4]}
18. fxe4 {[%clk 0:04:16.1]} 18... Be7 {[%clk 0:03:28.2]} 19. Rc1 {[%clk
0:04:09.6]} 19... Kb8 {[%clk 0:03:18]} 20. Bf4 {[%clk 0:04:03.1]} 20... Bd6
{[%clk 0:03:15.9]} 21. Bxd6 {[%clk 0:04:00.1]} 21... cxd6 {[%clk 0:03:13.8]} 22.
Rd1 {[%clk 0:03:59.2]} 22... Rd8 {[%clk 0:03:10.4]} 23. e5 {[%clk 0:03:56.1]}
23... Kc7 {[%clk 0:03:04.4]} 24. exd6+ {[%clk 0:03:54.6]} 24... Rxd6 {[%clk
0:03:02.5]} 25. Rf1 {[%clk 0:03:51]} 25... Rd2 {[%clk 0:02:59.5]} 26. Rb1 {[%clk
0:03:49.1]} 26... Kd6 {[%clk 0:02:53.8]} 27. a3 {[%clk 0:03:41.2]} 27... e5
{[%clk 0:02:52.3]} 28. b4 {[%clk 0:03:39.1]} 28... b5 {[%clk 0:02:49.1]} 29. Rc1
{[%clk 0:03:36.3]} 29... f5 {[%clk 0:02:40.9]} 30. Rc8 {[%clk 0:03:34.2]} 30...
Ra2 {[%clk 0:02:32.2]} 31. Rg8 {[%clk 0:03:29.2]} 31... Rxa3 {[%clk 0:02:17.5]}
32. Rxg7 {[%clk 0:03:27.5]} 32... Ra4 {[%clk 0:02:16]} 33. Rg6+ {[%clk
0:03:24.9]} 33... Kd5 {[%clk 0:02:14.1]} 34. Rxh6 {[%clk 0:03:23.9]} 34... Rxb4
{[%clk 0:02:05.8]} 35. Rxa6 {[%clk 0:03:22.1]} 35... Rb1+ {[%clk 0:02:04.1]} 36.
Kg2 {[%clk 0:03:20.6]} 36... b4 {[%clk 0:02:03.2]} 37. Ra5+ {[%clk 0:03:18.7]}
37... Ke4 {[%clk 0:02:00.7]} 38. Rb5 {[%clk 0:03:16.4]} 38... Kf4 {[%clk
0:01:50.1]} 39. f3 {[%clk 0:03:10.7]} 39... Rb2+ {[%clk 0:01:44.9]} 40. Kh1
{[%clk 0:03:07.9]} 40... Kxf3 {[%clk 0:01:39.4]} 41. Rxe5 {[%clk 0:03:05.6]}
41... Rb1+ {[%clk 0:01:37.9]} 0-1

[Event "Live Chess"]
[Site "Chess.com"]
[Date "2023.05.20"]
[Round "-"]
[White "hturner40"]
[Black "1600x"]
[Result "0-1"]
[WhiteElo "1839"]
[BlackElo "1349"]
[TimeControl "300"]
[EndTime "10:05:37 PDT"]
[Termination "1600x won on time"]

1. g3 {[%clk 0:04:55.6]} 1... e5 {[%clk 0:04:57]} 2. c4 {[%clk 0:04:52.4]} 2...
d5 {[%clk 0:04:54.6]} 3. cxd5 {[%clk 0:04:49.9]} 3... Qxd5 {[%clk 0:04:53.4]} 4.
Nf3 {[%clk 0:04:48.5]} 4... Qc5 {[%clk 0:04:51.6]} 5. Nc3 {[%clk 0:04:42.3]}
5... Nc6 {[%clk 0:04:49.8]} 6. Bg2 {[%clk 0:04:38.1]} 6... Nf6 {[%clk
0:04:44.9]} 7. O-O {[%clk 0:04:33.8]} 7... Be7 {[%clk 0:04:42.9]} 8. d3 {[%clk
0:04:31.7]} 8... O-O {[%clk 0:04:39.9]} 9. Be3 {[%clk 0:04:26.4]} 9... Nd4
{[%clk 0:04:38.1]} 10. Rc1 {[%clk 0:04:22.5]} 10... Nxf3+ {[%clk 0:04:33.5]} 11.
Bxf3 {[%clk 0:04:19.5]} 11... Qb4 {[%clk 0:04:31.1]} 12. b3 {[%clk 0:04:02]}
12... c6 {[%clk 0:04:28.5]} 13. Bg2 {[%clk 0:03:37.1]} 13... Qa5 {[%clk
0:04:23.4]} 14. Bd2 {[%clk 0:03:27.8]} 14... Bb4 {[%clk 0:04:21.6]} 15. a4
{[%clk 0:03:21.4]} 15... Be6 {[%clk 0:03:49.4]} 16. Nb1 {[%clk 0:02:36.2]} 16...
Rfd8 {[%clk 0:03:14.6]} 17. Qe1 {[%clk 0:02:02]} 17... Rd4 {[%clk 0:02:41.9]}
18. Bc3 {[%clk 0:01:27.8]} 18... Re8 {[%clk 0:02:09]} 19. Bxb4 {[%clk 0:01:13]}
19... Rxb4 {[%clk 0:01:16.6]} 20. Nd2 {[%clk 0:01:06.9]} 20... Qc7 {[%clk
0:00:51.4]} 21. Rb1 {[%clk 0:00:30.7]} 21... Qe7 {[%clk 0:00:42.9]} 22. Nc4
{[%clk 0:00:20]} 22... Bxc4 {[%clk 0:00:40.2]} 23. dxc4 {[%clk 0:00:18.6]} 23...
e4 {[%clk 0:00:38.8]} 24. Qc3 {[%clk 0:00:13.6]} 24... e3 {[%clk 0:00:37.7]} 0-1

[Event "Live Chess"]
[Site "Chess.com"]
[Date "2023.05.20"]
[Round "-"]
[White "mach247"]
[Black "Prijmak"]
[Result "1-0"]
[WhiteElo "1354"]
[BlackElo "980"]
[TimeControl "300"]
[EndTime "10:05:39 PDT"]
[Termination "mach247 won by resignation"]

1. e4 {[%clk 0:04:59.6]} 1... e5 {[%clk 0:04:57.5]} 2. Nf3 {[%clk 0:04:59]} 2...
Nc6 {[%clk 0:04:55.8]} 3. Bc4 {[%clk 0:04:58.2]} 3... h6 {[%clk 0:04:54.5]} 4.
O-O {[%clk 0:04:54.4]} 4... Bc5 {[%clk 0:04:53.2]} 5. c3 {[%clk 0:04:53.5]} 5...
Nf6 {[%clk 0:04:52.1]} 6. d3 {[%clk 0:04:52.9]} 6... d6 {[%clk 0:04:49.8]} 7. a4
{[%clk 0:04:51.6]} 7... a6 {[%clk 0:04:45.2]} 8. b4 {[%clk 0:04:50]} 8... Ba7
{[%clk 0:04:42.4]} 9. Re1 {[%clk 0:04:45.6]} 9... Bg4 {[%clk 0:04:40.4]} 10. h3
{[%clk 0:04:45.2]} 10... Bh5 {[%clk 0:04:38.2]} 11. Nbd2 {[%clk 0:04:43.6]}
11... O-O {[%clk 0:04:35.3]} 12. Qb3 {[%clk 0:04:42.1]} 12... Qd7 {[%clk
0:04:33.3]} 13. b5 {[%clk 0:04:38.9]} 13... axb5 {[%clk 0:04:30.6]} 14. Bxb5
{[%clk 0:04:29.5]} 14... d5 {[%clk 0:04:15.1]} 15. Nxe5 {[%clk 0:04:21.7]} 15...
Nxe5 {[%clk 0:04:12.7]} 16. Bxd7 {[%clk 0:04:20.5]} 1-0

[Event "Live Chess"]
[Site "Chess.com"]
[Date "2023.05.20"]
[Round "-"]
[White "WilliamofOrange16th"]
[Black "Davidagye"]
[Result "0-1"]
[WhiteElo "1915"]
[BlackElo "1671"]
[TimeControl "300"]
[EndTime "10:05:45 PDT"]
[Termination "Davidagye won by resignation"]

1. b3 {[%clk 0:04:58.5]} 1... Nf6 {[%clk 0:04:55.9]} 2. Bb2 {[%clk 0:04:58]}
2... e6 {[%clk 0:04:55.3]} 3. c4 {[%clk 0:04:56.2]} 3... d5 {[%clk 0:04:53.8]}
4. cxd5 {[%clk 0:04:54.9]} 4... exd5 {[%clk 0:04:52.8]} 5. e3 {[%clk 0:04:53.7]}
5... c6 {[%clk 0:04:51]} 6. h3 {[%clk 0:04:50.7]} 6... Bd6 {[%clk 0:04:50.5]} 7.
Nf3 {[%clk 0:04:47.2]} 7... O-O {[%clk 0:04:49.9]} 8. Nc3 {[%clk 0:04:45.7]}
8... Bf5 {[%clk 0:04:48.4]} 9. d3 {[%clk 0:04:43.8]} 9... Nbd7 {[%clk 0:04:47]}
10. Be2 {[%clk 0:04:43.1]} 10... Re8 {[%clk 0:04:46.2]} 11. O-O {[%clk
0:04:41.8]} 11... Bg6 {[%clk 0:04:45.1]} 12. Nh4 {[%clk 0:04:36.3]} 12... Bb8
{[%clk 0:04:41.8]} 13. Nxg6 {[%clk 0:04:35.4]} 13... fxg6 {[%clk 0:04:40.1]} 14.
g3 {[%clk 0:04:25.2]} 14... Qc7 {[%clk 0:04:35.6]} 15. Bf3 {[%clk 0:04:16.9]}
15... Rxe3 {[%clk 0:03:58.2]} 16. fxe3 {[%clk 0:04:02.9]} 16... Qxg3+ {[%clk
0:03:56]} 17. Bg2 {[%clk 0:04:02.3]} 17... Qh2+ {[%clk 0:03:46.9]} 18. Kf2
{[%clk 0:04:01.4]} 18... Qg3+ {[%clk 0:03:45.8]} 19. Ke2 {[%clk 0:03:53]} 19...
Qxg2+ {[%clk 0:03:44.3]} 20. Rf2 {[%clk 0:03:51.2]} 20... Qxh3 {[%clk 0:03:41]}
21. Qg1 {[%clk 0:03:39.2]} 21... Ng4 {[%clk 0:03:31.4]} 22. Rf3 {[%clk
0:03:38.2]} 22... Qh5 {[%clk 0:03:23.8]} 23. Qg2 {[%clk 0:03:10.3]} 23... Nge5
{[%clk 0:03:08.7]} 24. Rh1 {[%clk 0:02:59.4]} 24... Qxf3+ {[%clk 0:03:05.1]} 25.
Qxf3 {[%clk 0:02:58.6]} 25... Nxf3 {[%clk 0:03:03.7]} 26. Kxf3 {[%clk
0:02:58.1]} 26... Bd6 {[%clk 0:03:03.3]} 27. d4 {[%clk 0:02:56.9]} 27... Rf8+
{[%clk 0:02:59.7]} 28. Ke2 {[%clk 0:02:56.1]} 28... Re8 {[%clk 0:02:57.8]} 29.
Kd3 {[%clk 0:02:54.4]} 29... Nf6 {[%clk 0:02:55]} 30. Re1 {[%clk 0:02:42.2]}
30... Ne4 {[%clk 0:02:53.2]} 31. Ne2 {[%clk 0:02:35.1]} 31... Bg3 {[%clk
0:02:48.9]} 32. Rf1 {[%clk 0:02:31.6]} 32... Nf2+ {[%clk 0:02:43.7]} 33. Kd2
{[%clk 0:02:28]} 33... Ne4+ {[%clk 0:02:42.5]} 34. Kd3 {[%clk 0:02:27.3]} 34...
Bd6 {[%clk 0:02:38.9]} 35. Bc3 {[%clk 0:02:17.8]} 35... Nxc3 {[%clk 0:02:37.4]}
36. Nxc3 {[%clk 0:02:16.7]} 36... Bb4 {[%clk 0:02:36]} 37. Ne2 {[%clk
0:02:15.5]} 37... c5 {[%clk 0:02:34.3]} 38. Nf4 {[%clk 0:02:10.2]} 38... cxd4
{[%clk 0:02:31.8]} 39. exd4 {[%clk 0:02:10.1]} 39... Rf8 {[%clk 0:02:28.4]} 40.
Ke2 {[%clk 0:02:02.5]} 40... Bd6 {[%clk 0:02:26.8]} 41. Nxd5 {[%clk 0:02:01.4]}
41... Rxf1 {[%clk 0:02:25.3]} 42. Kxf1 {[%clk 0:02:01.3]} 42... g5 {[%clk
0:02:24.4]} 43. Ne3 {[%clk 0:01:56.3]} 43... g6 {[%clk 0:02:22.5]} 44. Nc4
{[%clk 0:01:55.6]} 44... Bc7 {[%clk 0:02:21]} 45. Kf2 {[%clk 0:01:53.6]} 45...
Kf7 {[%clk 0:02:19]} 46. d5 {[%clk 0:01:52.3]} 46... b5 {[%clk 0:02:14.1]} 47.
d6 {[%clk 0:01:45.1]} 47... Bb6+ {[%clk 0:02:13.2]} 48. Kf3 {[%clk 0:01:43.2]}
48... bxc4 {[%clk 0:02:12.3]} 0-1

[Event "Live Chess"]
[Site "Chess.com"]
[Date "2023.05.20"]
[Round "-"]
[White "AdamHunt1"]
[Black "FlyingChessKestrel13"]
[Result "1-0"]
[WhiteElo "2255"]
[BlackElo "2117"]
[TimeControl "300"]
[EndTime "10:05:49 PDT"]
[Termination "AdamHunt1 won by resignation"]

1. e4 {[%clk 0:04:55.7]} 1... c5 {[%clk 0:04:58.2]} 2. d4 {[%clk 0:04:51.5]}
2... cxd4 {[%clk 0:04:56.9]} 3. c3 {[%clk 0:04:50.9]} 3... dxc3 {[%clk
0:04:55.1]} 4. Nxc3 {[%clk 0:04:50.4]} 4... e6 {[%clk 0:04:54.6]} 5. Nf3 {[%clk
0:04:48.4]} 5... d6 {[%clk 0:04:53.8]} 6. Bc4 {[%clk 0:04:46.4]} 6... Nf6 {[%clk
0:04:52.8]} 7. O-O {[%clk 0:04:43.6]} 7... Be7 {[%clk 0:04:52]} 8. Qe2 {[%clk
0:04:42.8]} 8... O-O {[%clk 0:04:50.9]} 9. Rd1 {[%clk 0:04:42.4]} 9... Bd7
{[%clk 0:04:38.8]} 10. e5 {[%clk 0:04:39.4]} 10... dxe5 {[%clk 0:04:36.3]} 11.
Nxe5 {[%clk 0:04:39.3]} 11... Qc7 {[%clk 0:04:32.2]} 12. Bf4 {[%clk 0:04:36.2]}
12... Rc8 {[%clk 0:04:09.7]} 13. Bb3 {[%clk 0:04:24.2]} 13... Bc6 {[%clk
0:03:51.3]} 14. Ng6 {[%clk 0:04:14.2]} 1-0

[Event "Live Chess"]
[Site "Chess.com"]
[Date "2023.05.20"]
[Round "-"]
[White "JoshMcK"]
[Black "kenn48"]
[Result "0-1"]
[WhiteElo "1541"]
[BlackElo "1331"]
[TimeControl "300"]
[EndTime "10:05:50 PDT"]
[Termination "kenn48 won by resignation"]

1. e4 {[%clk 0:04:59.3]} 1... e5 {[%clk 0:04:57.5]} 2. Nf3 {[%clk 0:04:58.2]}
2... Nf6 {[%clk 0:04:55.4]} 3. Nxe5 {[%clk 0:04:56.6]} 3... Nc6 {[%clk
0:04:53.6]} 4. Nxc6 {[%clk 0:04:55.7]} 4... dxc6 {[%clk 0:04:51.7]} 5. d3 {[%clk
0:04:54.1]} 5... Bc5 {[%clk 0:04:49.4]} 6. Be2 {[%clk 0:04:53]} 6... h5 {[%clk
0:04:46.9]} 7. c3 {[%clk 0:04:50.7]} 7... Qd6 {[%clk 0:04:43.4]} 8. d4 {[%clk
0:04:48.9]} 8... Bb6 {[%clk 0:04:36.6]} 9. e5 {[%clk 0:04:48.1]} 9... Qd5 {[%clk
0:04:25.4]} 10. exf6 {[%clk 0:04:28]} 10... Qxg2 {[%clk 0:04:21.6]} 11. Bf3
{[%clk 0:04:27.5]} 11... Qg6 {[%clk 0:03:56.4]} 12. Qe2+ {[%clk 0:04:19.9]}
12... Be6 {[%clk 0:03:51.9]} 13. fxg7 {[%clk 0:04:15.4]} 13... Qxg7 {[%clk
0:03:49.8]} 14. Bf4 {[%clk 0:04:12]} 14... O-O-O {[%clk 0:03:38.5]} 15. Nd2
{[%clk 0:04:05]} 15... Rde8 {[%clk 0:03:32.2]} 16. O-O-O {[%clk 0:04:01.5]}
16... Bxa2 {[%clk 0:03:15.9]} 17. Be5 {[%clk 0:03:48.9]} 17... f6 {[%clk
0:02:54.8]} 18. Rhg1 {[%clk 0:03:44.6]} 18... Qh6 {[%clk 0:02:45.7]} 19. Qd3
{[%clk 0:03:23.3]} 19... fxe5 {[%clk 0:02:40.6]} 20. Rg6 {[%clk 0:03:20.7]}
20... Qf4 {[%clk 0:02:19.5]} 21. dxe5 {[%clk 0:03:05.3]} 21... Rxe5 {[%clk
0:01:41.5]} 22. Rg7 {[%clk 0:02:12.1]} 22... Bc4 {[%clk 0:01:24.2]} 23. Qd7+
{[%clk 0:02:10]} 23... Kb8 {[%clk 0:01:15.5]} 24. Rf7 {[%clk 0:02:07.4]} 24...
Bxf7 {[%clk 0:00:54.8]} 0-1

[Event "Live Chess"]
[Site "Chess.com"]
[Date "2023.05.20"]
[Round "-"]
[White "lamteama1"]
[Black "guptarayan"]
[Result "0-1"]
[WhiteElo "985"]
[BlackElo "599"]
[TimeControl "300"]
[EndTime "10:05:54 PDT"]
[Termination "guptarayan won on time"]

1. e4 {[%clk 0:04:50]} 1... e5 {[%clk 0:04:58.1]} 2. Nf3 {[%clk 0:04:43.8]} 2...
f5 {[%clk 0:04:56.9]} 3. exf5 {[%clk 0:04:24]} 3... e4 {[%clk 0:04:53.1]} 4. Ne5
{[%clk 0:04:17]} 4... Qf6 {[%clk 0:04:49.4]} 5. d4 {[%clk 0:04:08]} 5... c5
{[%clk 0:04:39.4]} 6. Bc4 {[%clk 0:03:59.4]} 6... Nh6 {[%clk 0:04:23.8]} 7. g4
{[%clk 0:03:42.7]} 7... cxd4 {[%clk 0:04:16]} 8. h4 {[%clk 0:03:26.2]} 8... d6
{[%clk 0:03:51.6]} 9. g5 {[%clk 0:03:10.5]} 9... Qxe5 {[%clk 0:03:47.2]} 10. f4
{[%clk 0:02:26.9]} 10... Qc5 {[%clk 0:03:39.3]} 11. b3 {[%clk 0:02:08]} 11... a5
{[%clk 0:03:35.5]} 12. gxh6 {[%clk 0:01:49.3]} 12... gxh6 {[%clk 0:03:29.3]} 13.
a4 {[%clk 0:01:44.2]} 13... Nc6 {[%clk 0:03:24.9]} 14. Nd2 {[%clk 0:01:16]}
14... e3 {[%clk 0:03:21.3]} 15. Ne4 {[%clk 0:00:57.5]} 15... Qb4+ {[%clk
0:03:04.3]} 16. Kf1 {[%clk 0:00:35.4]} 16... Bxf5 {[%clk 0:02:56.9]} 17. Nf6+
{[%clk 0:00:30.1]} 17... Ke7 {[%clk 0:02:49.1]} 18. Kg2 {[%clk 0:00:12.3]} 18...
Kxf6 {[%clk 0:02:33.6]} 19. c3 {[%clk 0:00:03.9]} 19... Qxc3 {[%clk 0:02:26.8]}
0-1